fUSD/lending_fUSD_20251122
["ID","MTS","AMOUNT","RATE_DAILY","PERIOD"]
[394654561,1763820641374,-500.0,0.0001726,2]
[394654562,1763820641383,-500.0,0.0001726,2]
[394654563,1763820641393,-500.0,0.0001726,2]
[394654564,1763820641402,-500.0,0.0001726,2]
[394654565,1763820641412,-490.5356369,0.0001726,2]
[394654566,1763820641422,-500.0,0.0001726,2]
[394654567,1763820641432,-352.23,0.0001726,2]
[394654568,1763820641441,-500.0,0.0001726,2]
[394654569,1763820641452,-500.0,0.0001726,2]
[394654570,1763820641462,-500.0,0.0001726,2]
[394654571,1763820641473,-500.0,0.0001726,2]
[394654572,1763820641482,-500.0,0.0001726,2]
[394654573,1763820641491,-500.0,0.0001726,2]
[394654574,1763820641500,-500.0,0.0001726,2]
[394654575,1763820641510,-293.15471232,0.0001726,2]
[394654576,1763820641520,-1118.37,0.0001726,2]
[394654577,1763820641529,-500.0,0.0001726,2]
[394654578,1763820641539,-642.86,0.0001726,2]
[394654579,1763820641549,-500.0,0.0001726,2]
[394654580,1763820641558,-500.0,0.0001726,2]
[394654581,1763820641567,-566.38026353,0.00017422,2]
[394654582,1763820641578,-1164.23132937,0.00017422,2]
[394654583,1763820641591,-400.24262135,0.00017533,2]
[394654584,1763820641600,-500.0,0.00017534,2]
[394654585,1763820641610,-500.0,0.00017534,2]
[394654586,1763820641619,-500.0,0.00017534,2]
[394654587,1763820641630,-430.62616495,0.00017534,2]
[394654588,1763820641639,-500.0,0.00017534,2]
[394654589,1763820641649,-500.0,0.00017534,2]
[394654590,1763820641659,-352.26,0.00017534,2]
[394654591,1763820641671,-500.0,0.00017534,2]
[394654592,1763820641680,-500.0,0.00017534,2]
[394654593,1763820641689,-500.0,0.00017534,2]
[394654594,1763820641698,-500.0,0.00017534,2]
[394654595,1763820641707,-500.0,0.00017534,2]
[394654596,1763820641716,-500.0,0.00017534,2]
[394654597,1763820641725,-500.0,0.00017534,2]
[394654598,1763820641734,-1118.37,0.00017534,2]
[394654599,1763820641743,-500.0,0.00017534,2]
[394654600,1763820641752,-642.86,0.00017534,2]
[394654601,1763820641761,-397.04628,0.00017534,2]
[394654602,1763820641770,-500.0,0.00017534,2]
[394654603,1763820641779,-500.0,0.00017808,2]
[394654604,1763820641788,-500.0,0.00017808,2]
[394654605,1763820641797,-500.0,0.00017808,2]
[394654606,1763820641806,-500.0,0.00017808,2]
[394654607,1763820641815,-500.0,0.00017808,2]
[394654608,1763820641824,-500.0,0.00017808,2]
[394654609,1763820641834,-500.0,0.00017808,2]
[394654610,1763820641843,-500.0,0.00017808,2]
[394654611,1763820641852,-500.0,0.00017808,2]
[394654612,1763820641861,-500.0,0.00017808,2]
[394654613,1763820641870,-500.0,0.00017808,2]
[394654614,1763820641879,-500.0,0.00017808,2]
[394654615,1763820641889,-1118.37,0.00017808,2]
[394654616,1763820641900,-500.0,0.00017808,2]
[394654617,1763820641909,-642.86,0.00017808,2]
[394654618,1763820641919,-500.0,0.00017808,2]
[394654619,1763820641928,-397.0,0.00017838,2]
[394654620,1763820641938,-397.0,0.00017854,2]
[394654621,1763820641948,-200.0,0.00017856,2]
[394654622,1763820641958,-397.0,0.00017929,2]
[394654623,1763820641967,-500.0,0.00017973,2]
[394654624,1763820641977,-500.0,0.00017973,2]
[394654625,1763820641987,-608.48551232,0.00017973,2]
[394654626,1763820641996,-500.0,0.00017973,2]
[394654627,1763820642005,-500.0,0.00017973,2]
[394654628,1763820642014,-500.0,0.00017973,2]
[394654629,1763820642023,-501.18613092,0.00017973,2]
[394654630,1763820642032,-576.13680882,0.00017999,2]
[394654631,1763820642041,-177.49601167,0.00017999,2]
[394654632,1763820642050,-205.11250062,0.00017999,2]
[394654633,1763820642059,-2576.0,0.00018,2]
[394654634,1763820642069,-880318.94498567,0.00018,2]
[394654635,1763820642078,-483288.49043739,0.00018,2]
[394654636,1763820642093,-62882.29710281,0.00018,2]
[394654637,1763820642110,-7209.14401706,0.00018,2]
[394654643,1763820645677,-1641.05942,0.00018,2]
[394654646,1763821328077,291.681029,7.945e-05,2]
[394654649,1763821612143,150.0,0.00022,30]
[394654650,1763821633818,150.0,0.00022,30]
[394654654,1763821654150,150.0,0.00022,30]
[394654655,1763821681366,150.0,0.00022,30]
[394654656,1763821699527,150.0,0.00022,30]
[394654657,1763821728798,1000.0,0.0001483,2]
[394654658,1763821750445,5395.18,0.0001483,2]
[394654659,1763821761491,150.0,0.00022,30]
[394654660,1763821774488,150.0,0.00022,30]
[394654661,1763821784950,150.0,0.00022,30]
[394654662,1763821796489,150.0,0.00022,30]
[394654663,1763821806263,150.0,0.00022,30]
[394654664,1763821818228,150.0,0.00022,30]
[394654672,1763821831748,-250.0,0.00015137,2]
[394654674,1763821831759,-300.0,0.00015137,2]
[394654676,1763821831768,-255.848,0.00015138,2]
[394654677,1763821831806,-570.88444884,0.00015138,2]
[394654678,1763821831932,-806.15193382,0.00015138,2]
[394654679,1763821832095,-473.630693,0.00015138,2]
[394654680,1763821832107,-1303.47621283,0.00015138,2]
[394654692,1763821837727,-984.039998,0.00015138,2]
[394654693,1763821837738,-509.61914462,0.00015138,2]
[394654694,1763821837858,-738.65773365,0.00015138,2]
[394654698,1763821839817,-1528.16407954,0.00015138,2]
[394654699,1763821839829,-674.38951,0.00015138,2]
[394654700,1763821839841,-36377.341,0.00015138,2]
[394654701,1763821839878,-72249.1582457,0.00015138,2]
[394654702,1763821839888,-352.23,0.00015237,2]
[394654703,1763821839898,-205.11250062,0.00015237,2]
[394654704,1763821839909,-177.49601167,0.00015237,2]
[394654705,1763821839921,-500.0,0.00015237,2]
[394654706,1763821839930,-500.0,0.00015237,2]
[394654707,1763821839939,-500.0,0.00015237,2]
[394654708,1763821839948,-500.0,0.00015237,2]
[394654709,1763821839958,-500.0,0.00015237,2]
[394654710,1763821839968,-500.0,0.00015237,2]
[394654711,1763821839979,-500.0,0.00015237,2]
[394654712,1763821839992,-500.0,0.00015237,2]
[394654713,1763821840002,-500.0,0.00015237,2]
[394654714,1763821840011,-500.0,0.00015237,2]
[394654715,1763821840022,-500.0,0.00015237,2]
[394654716,1763821840033,-500.0,0.00015237,2]
[394654717,1763821840046,-500.0,0.00015237,2]
[394654718,1763821840056,-500.0,0.00015237,2]
[394654719,1763821840066,-500.0,0.00015237,2]
[394654720,1763821840075,-189.48222812,0.00015237,2]
[394654721,1763821840084,-500.0,0.00015237,2]
[394654722,1763821840094,-500.0,0.00015237,2]
[394654723,1763821840103,-500.0,0.00015237,2]
[394654724,1763821840112,-500.0,0.00015237,2]
[394654725,1763821840121,-500.0,0.00015237,2]
[394654726,1763821840131,-500.0,0.00015237,2]
[394654727,1763821840140,-500.0,0.00015237,2]
[394654728,1763821840149,-500.0,0.00015237,2]
[394654729,1763821840159,-500.0,0.00015237,2]
[394654730,1763821840172,-500.0,0.00015237,2]
[394654731,1763821840181,-500.0,0.00015237,2]
[394654732,1763821840190,-500.0,0.00015237,2]
[394654733,1763821840199,-500.0,0.00015237,2]
[394654734,1763821840209,-500.0,0.00015237,2]
[394654735,1763821840218,-500.0,0.00015237,2]
[394654736,1763821840228,-500.0,0.00015237,2]
[394654737,1763821840237,-500.0,0.00015237,2]
[394654738,1763821840249,-500.0,0.00015237,2]
[394654739,1763821840260,-576.13680882,0.00015237,2]
[394654740,1763821840270,-500.0,0.00015237,2]
[394654741,1763821840280,-500.0,0.00015237,2]
[394654742,1763821840289,-500.0,0.00015237,2]
[394654743,1763821840298,-500.0,0.00015237,2]
[394654744,1763821840307,-500.0,0.00015237,2]
[394654745,1763821840317,-500.0,0.00015237,2]
[394654746,1763821840326,-500.0,0.00015237,2]
[394654747,1763821840335,-500.0,0.00015237,2]
[394654748,1763821840344,-500.0,0.00015237,2]
[394654749,1763821840353,-500.0,0.00015237,2]
[394654750,1763821840362,-500.0,0.00015237,2]
[394654751,1763821840371,-318.94822281,0.00015237,2]
[394654752,1763821840380,-500.0,0.00015237,2]
[394654753,1763821840389,-500.0,0.00015237,2]
[394654754,1763821840398,-500.0,0.00015237,2]
[394654755,1763821840407,-292.06215603,0.00015237,2]
[394654756,1763821840417,-352.23,0.00015511,2]
[394654757,1763821840426,-481.42,0.00015581,2]
[394654758,1763821840440,-1000.0,0.00015584,2]
[394654759,1763821840448,-165.29399905,0.000156,2]
[394654760,1763821840458,-174.74699685,0.000156,2]
[394654761,1763821840467,-1201.28075365,0.000157,2]
[394654762,1763821840476,-352.23,0.00015785,2]
[394654763,1763821840485,-625.14038922,0.000159,2]
[394654764,1763821840494,-1201.28075364,0.00015944,2]
[394654765,1763821840503,-352.23,0.00016059,2]
[394654766,1763821840512,-566.38026355,0.00016161,2]
[394654767,1763821840521,-200.0,0.00016186,2]
[394654768,1763821840530,-1201.28075364,0.00016189,2]
[394654769,1763821840539,-352.26,0.00016333,2]
[394654770,1763821840548,-150.0,0.00016349,2]
[394654771,1763821840558,-566.38026353,0.00016354,2]
[394654772,1763821840567,-1600.0,0.00016361,2]
[394654773,1763821840576,-9617.15,0.0001639,2]
[394654774,1763821840585,-1201.28075364,0.00016433,2]
[394654775,1763821840595,-158.67491789,0.00016438,2]
[394654776,1763821840604,-500.0,0.00016438,2]
[394654777,1763821840613,-500.0,0.00016438,2]
[394654778,1763821840626,-500.0,0.00016438,2]
[394654779,1763821840636,-500.0,0.00016438,2]
[394654780,1763821840645,-400.24262135,0.00016438,2]
[394654781,1763821840654,-500.0,0.00016438,2]
[394654782,1763821840663,-500.0,0.00016438,2]
[394654783,1763821840672,-500.0,0.00016438,2]
[394654784,1763821840681,-500.0,0.00016438,2]
[394654785,1763821840691,-500.0,0.00016438,2]
[394654786,1763821840700,-339.12007461,0.00016438,2]
[394654787,1763821840709,-500.0,0.00016438,2]
[394654788,1763821840718,-500.0,0.00016438,2]
[394654789,1763821840727,-642.86,0.00016438,2]
[394654790,1763821840736,-500.0,0.00016438,2]
[394654791,1763821840745,-500.0,0.00016438,2]
[394654792,1763821840753,-500.0,0.00016438,2]
[394654793,1763821840762,-500.0,0.00016438,2]
[394654794,1763821840772,-500.0,0.00016438,2]
[394654795,1763821840781,-500.0,0.00016438,2]
[394654796,1763821840790,-500.0,0.00016438,2]
[394654797,1763821840799,-500.0,0.00016438,2]
[394654798,1763821840808,-521.78839333,0.00016438,2]
[394654799,1763821840818,-504.1,0.00016438,2]
[394654800,1763821840829,-527.92,0.00016438,2]
[394654801,1763821840838,-500.0,0.00016438,2]
[394654802,1763821840847,-300.0,0.00016438,2]
[394654803,1763821840856,-500.0,0.00016438,2]
[394654804,1763821840865,-500.0,0.00016438,2]
[394654805,1763821840875,-500.0,0.00016438,2]
[394654806,1763821840884,-500.0,0.00016438,2]
[394654807,1763821840893,-500.0,0.00016438,2]
[394654808,1763821840902,-500.0,0.00016438,2]
[394654809,1763821840912,-500.0,0.00016438,2]
[394654810,1763821840921,-500.0,0.00016438,2]
[394654811,1763821840930,-500.0,0.00016438,2]
[394654812,1763821840940,-500.0,0.00016438,2]
[394654813,1763821840949,-588.58,0.00016438,2]
[394654814,1763821840958,-500.0,0.00016438,2]
[394654815,1763821840967,-500.0,0.00016438,2]
[394654816,1763821840976,-518.33285801,0.00016438,2]
[394654817,1763821840988,-500.0,0.00016438,2]
[394654818,1763821840997,-500.0,0.00016438,2]
[394654819,1763821841007,-500.0,0.00016438,2]
[394654820,1763821841016,-500.0,0.00016438,2]
[394654821,1763821841026,-500.0,0.00016438,2]
[394654822,1763821841035,-500.0,0.00016438,2]
[394654823,1763821841044,-500.0,0.00016438,2]
[394654824,1763821841054,-500.0,0.00016438,2]
[394654825,1763821841065,-500.0,0.00016438,2]
[394654826,1763821841074,-500.0,0.00016438,2]
[394654827,1763821841083,-500.0,0.00016438,2]
[394654828,1763821841093,-500.0,0.00016438,2]
[394654829,1763821841102,-500.0,0.00016438,2]
[394654830,1763821841111,-500.0,0.00016438,2]
[394654831,1763821841119,-500.0,0.00016438,2]
[394654832,1763821841129,-500.0,0.00016438,2]
[394654833,1763821841138,-500.0,0.00016438,2]
[394654834,1763821841147,-500.0,0.00016438,2]
[394654835,1763821841157,-500.0,0.00016438,2]
[394654836,1763821841167,-500.0,0.00016438,2]
[394654837,1763821841176,-500.0,0.00016438,2]
[394654838,1763821841186,-500.0,0.00016438,2]
[394654839,1763821841195,-500.0,0.00016438,2]
[394654840,1763821841204,-500.0,0.00016438,2]
[394654841,1763821841223,-500.0,0.00016438,2]
[394654842,1763821841233,-500.0,0.00016438,2]
[394654843,1763821841243,-500.0,0.00016438,2]
[394654844,1763821841252,-500.0,0.00016438,2]
[394654845,1763821841262,-563.52,0.00016438,2]
[394654846,1763821841271,-500.0,0.00016438,2]
[394654847,1763821841281,-500.0,0.00016438,2]
[394654848,1763821841290,-500.0,0.00016438,2]
[394654849,1763821841299,-1118.37,0.00016438,2]
[394654850,1763821841309,-500.0,0.00016438,2]
[394654851,1763821841319,-500.0,0.00016438,2]
[394654852,1763821841328,-500.0,0.00016438,2]
[394654853,1763821841337,-500.0,0.00016438,2]
[394654854,1763821841347,-500.0,0.00016438,2]
[394654855,1763821841357,-500.0,0.00016438,2]
[394654856,1763821841366,-201.01,0.00016438,2]
[394654857,1763821841375,-1375.69,0.00016438,2]
[394654858,1763821841385,-331.77613583,0.00016438,2]
[394654859,1763821841394,-3466.95988149,0.00016529,2]
[394654860,1763821841404,-566.38026353,0.00016547,2]
[394654861,1763821841415,-420.0,0.00016564,2]
[394654862,1763821841424,-399.24696299,0.00016584,2]
[394654863,1763821841434,-250.0,0.0001665,2]
[394654864,1763821841443,-1823.41517303,0.0001665,3]
[394654865,1763821841452,-250.0,0.0001665,2]
[394654866,1763821841461,-300.0,0.0001665,2]
[394654867,1763821841472,-300.0,0.0001665,2]
[394654868,1763821841482,-300.0,0.0001665,2]
[394654869,1763821841492,-300.0,0.0001665,2]
[394654870,1763821841502,-299.90601822,0.00016651,2]
[394654871,1763821841511,-150.12675746,0.00016651,2]
[394654872,1763821841521,-1201.28075364,0.00016678,2]
[394654873,1763821841530,-500.0,0.00016712,2]
[394654874,1763821841539,-507.149334,0.00016712,2]
[394654875,1763821841548,-500.0,0.00016712,2]
[394654876,1763821841558,-500.0,0.00016712,2]
[394654877,1763821841567,-500.0,0.00016712,2]
[394654878,1763821841576,-500.0,0.00016712,2]
[394654879,1763821841586,-500.0,0.00016712,2]
[394654880,1763821841598,-500.0,0.00016712,2]
[394654881,1763821841608,-500.0,0.00016712,2]
[394654882,1763821841617,-642.86,0.00016712,2]
[394654883,1763821841627,-190.41,0.00016712,2]
[394654884,1763821841637,-306.78,0.00016712,2]
[394654885,1763821841646,-150.48,0.00016712,2]
[394654886,1763821841655,-500.0,0.00016712,2]
[394654887,1763821841667,-253.02,0.00016712,2]
[394654888,1763821841677,-500.0,0.00016712,2]
[394654889,1763821841686,-500.0,0.00016712,2]
[394654890,1763821841695,-500.0,0.00016712,2]
[394654891,1763821841705,-500.0,0.00016712,2]
[394654892,1763821841714,-500.0,0.00016712,2]
[394654893,1763821841724,-500.0,0.00016712,2]
[394654894,1763821841733,-500.0,0.00016712,2]
[394654895,1763821841742,-259.94737467,0.00016712,2]
[394654896,1763821841752,-500.0,0.00016712,2]
[394654897,1763821841761,-500.0,0.00016712,2]
[394654898,1763821841771,-500.0,0.00016712,2]
[394654899,1763821841781,-500.0,0.00016712,2]
[394654900,1763821841790,-500.0,0.00016712,2]
[394654901,1763821841800,-500.0,0.00016712,2]
[394654902,1763821841810,-500.0,0.00016712,2]
[394654903,1763821841821,-500.0,0.00016712,2]
[394654904,1763821841831,-1118.37,0.00016712,2]
[394654905,1763821841840,-150.08,0.00016712,2]
[394654906,1763821841852,-500.0,0.00016712,2]
[394654907,1763821841862,-500.0,0.00016712,2]
[394654908,1763821841873,-500.0,0.00016712,2]
[394654909,1763821841883,-500.0,0.00016712,2]
[394654910,1763821841893,-500.0,0.00016712,2]
[394654911,1763821841904,-566.38026353,0.00016741,2]
[394654912,1763821841914,-250.0,0.0001676,2]
[394654913,1763821841924,-229.55,0.00016845,2]
[394654914,1763821841933,-1201.28075364,0.00016922,2]
[394654915,1763821841943,-566.38026353,0.00016934,2]
[394654916,1763821841954,-559.61290757,0.00016973,2]
[394654917,1763821841966,-500.0,0.00016986,2]
[394654918,1763821841976,-554.89478754,0.00016986,2]
[394654919,1763821841987,-500.0,0.00016986,2]
[394654920,1763821842000,-500.0,0.00016986,2]
[394654921,1763821842012,-500.0,0.00016986,2]
[394654922,1763821842024,-500.0,0.00016986,2]
[394654923,1763821842035,-500.0,0.00016986,2]
[394654924,1763821842044,-642.86,0.00016986,2]
[394654925,1763821842054,-500.80437399,0.00016986,2]
[394654926,1763821842064,-500.0,0.00016986,2]
[394654927,1763821842076,-339.63191572,0.00016986,2]
[394654928,1763821842086,-500.0,0.00016986,2]
[394654929,1763821842095,-500.0,0.00016986,2]
[394654930,1763821842105,-500.0,0.00016986,2]
[394654931,1763821842115,-500.0,0.00016986,2]
[394654932,1763821842124,-482.39,0.00016986,2]
[394654933,1763821842134,-500.0,0.00016986,2]
[394654934,1763821842144,-500.0,0.00016986,2]
[394654935,1763821842154,-546.65888768,0.00016986,2]
[394654936,1763821842164,-500.0,0.00016986,2]
[394654937,1763821842173,-500.0,0.00016986,2]
[394654938,1763821842183,-500.0,0.00016986,2]
[394654939,1763821842192,-333.0,0.00016986,2]
[394654940,1763821842203,-1118.37,0.00016986,2]
[394654941,1763821842213,-500.0,0.00016986,2]
[394654942,1763821842222,-500.0,0.00016986,2]
[394654943,1763821842232,-500.0,0.00016986,2]
[394654944,1763821842241,-500.0,0.00016986,2]
[394654945,1763821842251,-500.0,0.00016986,2]
[394654946,1763821842261,-2513.24,0.00016986,2]
[394654947,1763821842271,-2000.0,0.00017,2]
[394654948,1763821842280,-1281741.9364181,0.00017,2]
[394654949,1763821842512,-3012.18751035,0.00017,2]
[394654950,1763821842524,-73062.9536497,0.00017,2]
[394654951,1763821842537,-18032.87522779,0.00017,2]
[394654958,1763821843768,-2835.8024,0.00017,2]
[394654959,1763821843829,-422.31500915,0.00017,2]
[394654960,1763821845603,150.0,0.00022,30]
[394655014,1763821866243,150.0,0.00022,30]
[394655015,1763822000388,500.0,0.00022,30]
[394655016,1763822014360,500.0,0.00022,30]
[394655017,1763822047114,300.0,0.00022,30]
[394655018,1763822058865,337.35,0.00022,30]
[394655019,1763822241215,404.34,0.00019178,30]
[394655020,1763822668707,466.57,0.00013699,2]
[394655021,1763822726299,150.0,0.00015554,120]
[394655022,1763822950608,166.66,0.00014057,2]
[394655023,1763822950831,166.66,0.00014353,2]
[394655024,1763822951023,166.66,0.00014649,2]
[394655025,1763822965608,200.0,0.00014797,2]
[394655029,1763823031954,-548.433,0.00014835,2]
[394655030,1763823031964,-172.07205562,0.00014938,2]
[394655031,1763823031973,-166.66,0.00014944,2]
[394655032,1763823031982,-1200.0,0.00015037,2]
[394655033,1763823031991,-300.0,0.00015037,2]
[394655034,1763823031999,-1000.0,0.00015038,2]
[394655035,1763823032012,-6159.6473926,0.00015038,2]
[394655036,1763823032024,-1635.87974377,0.00015038,2]
[394655037,1763823032041,-85690.04826363,0.00015038,2]
[394655038,1763823032051,-2500.0,0.00015038,2]
[394655039,1763823032060,-480.51230151,0.00015111,2]
[394655040,1763823032070,-1200.0,0.00015127,2]
[394655041,1763823032080,-300.0,0.00015137,2]
[394655042,1763823032090,-574.18,0.00015211,2]
[394655043,1763823032101,-166.66,0.0001524,2]
[394655044,1763823032112,-688.59943486,0.00015274,2]
[394655045,1763823032123,-2062.40056514,0.00015274,2]
[394655046,1763823032134,-150.99,0.00015311,2]
[394655047,1763823032143,-1852.42,0.00015365,2]
[394655048,1763823032152,-178.71166099,0.00015421,2]
[394655049,1763823032165,-301.80064046,0.00015421,2]
[394655050,1763823032174,-166.66,0.00015536,2]
[394655051,1763823032183,-318.11,0.00015554,2]
[394655052,1763823032194,-150.0,0.00015554,2]
[394655054,1763823032203,-500.0,0.00015554,2]
[394655056,1763823032213,-999.0,0.00015611,3]
[394655058,1763823032222,-250.0,0.00015611,2]
[394655060,1763823032231,-479.51,0.00015611,2]
[394655061,1763823032241,-480.51230145,0.00015731,2]
[394655062,1763823032251,-345.20725634,0.000159,2]
[394655064,1763823032261,-150.0,0.0001602,2]
[394655066,1763823032270,-480.51230145,0.00016041,2]
[394655068,1763823032279,-159.96,0.00016079,2]
[394655070,1763823032289,-150.0,0.000162,2]
[394655071,1763823032299,-150.00000001,0.000162,2]
[394655072,1763823032309,-250.0,0.00016257,2]
[394655073,1763823032318,-480.51230145,0.00016351,2]
[394655074,1763823032332,-500.0,0.00016437,2]
[394655075,1763823032342,-500.0,0.00016437,2]
[394655076,1763823032351,-500.0,0.00016437,2]
[394655078,1763823032360,-581.89482228,0.00016437,2]
[394655080,1763823032371,-500.0,0.00016438,2]
[394655081,1763823032379,-500.0,0.00016438,2]
[394655082,1763823032388,-500.0,0.00016438,2]
[394655083,1763823032397,-190.68550382,0.00016438,2]
[394655084,1763823032407,-562.5,0.00016438,2]
[394655085,1763823032418,-500.0,0.00016438,2]
[394655086,1763823032427,-500.0,0.00016438,2]
[394655087,1763823032436,-500.0,0.00016438,2]
[394655088,1763823032445,-500.0,0.00016438,2]
[394655089,1763823032455,-500.0,0.00016438,2]
[394655090,1763823032464,-500.0,0.00016438,2]
[394655091,1763823032473,-500.0,0.00016438,2]
[394655092,1763823032482,-500.0,0.00016438,2]
[394655093,1763823032491,-502.78,0.00016438,2]
[394655094,1763823032500,-500.0,0.00016438,2]
[394655095,1763823032509,-500.0,0.00016438,2]
[394655096,1763823032518,-500.0,0.00016438,2]
[394655097,1763823032527,-500.0,0.00016438,2]
[394655098,1763823032536,-500.0,0.00016438,2]
[394655099,1763823032546,-500.0,0.00016438,2]
[394655100,1763823032555,-500.0,0.00016438,2]
[394655101,1763823032564,-500.0,0.00016438,2]
[394655102,1763823032573,-500.0,0.00016438,2]
[394655103,1763823032583,-500.0,0.00016438,2]
[394655104,1763823032593,-500.0,0.00016438,2]
[394655105,1763823032602,-500.0,0.00016438,2]
[394655106,1763823032613,-500.0,0.00016438,2]
[394655107,1763823032623,-500.0,0.00016438,2]
[394655108,1763823032632,-500.0,0.00016438,2]
[394655109,1763823032642,-500.0,0.00016438,2]
[394655110,1763823032651,-500.0,0.00016438,2]
[394655111,1763823032660,-500.0,0.00016438,2]
[394655112,1763823032669,-500.0,0.00016438,2]
[394655113,1763823032678,-500.0,0.00016438,2]
[394655114,1763823032688,-500.0,0.00016438,2]
[394655115,1763823032698,-500.0,0.00016438,2]
[394655116,1763823032707,-500.0,0.00016438,2]
[394655117,1763823032718,-500.0,0.00016438,2]
[394655118,1763823032729,-500.0,0.00016438,2]
[394655119,1763823032739,-436.45601748,0.00016438,2]
[394655120,1763823038113,-63.54398252,0.00016438,2]
[394655121,1763823038123,-290.49073168,0.00016438,2]
[394655147,1763823040070,-209.50926832,0.00016438,2]
[394655148,1763823040080,-500.0,0.00016438,2]
[394655149,1763823040090,-500.0,0.00016438,2]
[394655150,1763823040100,-500.0,0.00016438,2]
[394655151,1763823040110,-500.0,0.00016438,2]
[394655152,1763823040120,-627.65,0.00016438,2]
[394655153,1763823040130,-500.0,0.00016438,2]
[394655154,1763823040139,-335.21568987,0.00016438,2]
[394655155,1763823040149,-500.0,0.00016438,2]
[394655156,1763823040158,-500.0,0.00016438,2]
[394655157,1763823040170,-500.0,0.00016438,2]
[394655158,1763823040179,-978.57,0.00016438,2]
[394655159,1763823040189,-500.0,0.00016438,2]
[394655160,1763823040198,-141.09231956,0.00016438,2]
[394655161,1763823040213,-358.90768044,0.00016438,2]
[394655162,1763823040223,-336.53527677,0.00016438,2]
[394655167,1763823043767,-163.46472323,0.00016438,2]
[394655168,1763823043777,-500.0,0.00016438,2]
[394655169,1763823043787,-182.23285457,0.00016438,2]
[394655170,1763823043799,-110.92185775,0.00016438,2]
[394655171,1763823043808,-234.28539859,0.00016438,2]
[394655172,1763823046203,-254.122,0.00016438,2]
[394655174,1763823093390,438.746,0.00014737,2]
[394655316,1763823471383,164.23,7.994e-05,2]
[394655317,1763823471628,164.23,9.326e-05,2]
[394655318,1763823471826,164.23,0.00010658,2]
[394655319,1763823472017,164.23,0.00011991,2]
[394655320,1763823472222,164.23,0.00013323,2]
[394655321,1763823472642,164.23,0.00014655,2]
[394655323,1763823693420,173.896,0.00014737,2]
[394655324,1763823693464,548.576971,0.00014737,2]
[394655325,1763823693488,188.787029,0.00014737,2]
[394655327,1763823728435,163.0,0.00022,120]
[394655333,1763823887630,4219.0,0.000215,120]
[394655338,1763824232191,-167.95296366,0.00014838,2]
[394655339,1763824232201,-165.29399905,0.00014838,2]
[394655340,1763824232210,-1240.71,0.00014928,2]
[394655341,1763824232220,-1240.71,0.00014928,2]
[394655342,1763824232230,-250.0,0.00014933,2]
[394655343,1763824232240,-300.0,0.00014936,2]
[394655344,1763824232249,-1200.0,0.00014936,2]
[394655345,1763824232258,-300.0,0.00014936,2]
[394655346,1763824232268,-150.0,0.00014937,2]
[394655347,1763824232277,-403.29576617,0.00014937,2]
[394655348,1763824232288,-197.81476086,0.00014937,2]
[394655349,1763824232297,-500.0,0.00014937,2]